fUST/lending_fUST_20250702
["ID","MTS","AMOUNT","RATE_DAILY","PERIOD"]
[369071323,1751453452377,-460.0,0.00017808,2]
[369071324,1751453452387,-460.0,0.00017808,2]
[369071325,1751453452398,-460.0,0.00017808,2]
[369071326,1751453452408,-460.0,0.00017808,2]
[369071327,1751453452418,-460.0,0.00017808,2]
[369071328,1751453452428,-460.0,0.00017808,2]
[369071329,1751453452437,-517.23075716,0.00017808,2]
[369071330,1751453452447,-460.0,0.00017808,2]
[369071331,1751453452456,-658.41,0.00017808,2]
[369071332,1751453452466,-460.0,0.00017808,2]
[369071333,1751453452475,-460.0,0.00017808,2]
[369071334,1751453452484,-460.0,0.00017808,2]
[369071335,1751453452494,-196.55083398,0.00017808,2]
[369071336,1751453452503,-506.41,0.00017808,2]
[369071337,1751453452513,-460.0,0.00017808,2]
[369071338,1751453452523,-151.0,0.00017808,2]
[369071339,1751453452532,-460.0,0.00017808,2]
[369071340,1751453452541,-156.173079,0.00017808,2]
[369071341,1751453452551,-156.173079,0.00017808,2]
[369071342,1751453452562,-1129.18,0.00017808,2]
[369071343,1751453452572,-460.0,0.00017808,2]
[369071344,1751453452581,-439.397949,0.00017808,2]
[369071345,1751453452592,-439.397949,0.00017808,2]
[369071346,1751453452604,-460.0,0.00017808,2]
[369071347,1751453452613,-273.545379,0.00017808,2]
[369071348,1751453452622,-1998.73,0.00017808,2]
[369071349,1751453452631,-273.545379,0.00017808,2]
[369071350,1751453452641,-460.0,0.00017808,2]
[369071351,1751453452650,-807.76,0.00017808,2]
[369071352,1751453452660,-460.0,0.00017808,2]
[369071353,1751453452670,-507.57,0.00017808,2]
[369071354,1751453452679,-264.274515,0.00017808,2]
[369071355,1751453452688,-527.98,0.00017808,2]
[369071356,1751453452698,-488.07,0.00017808,2]
[369071357,1751453452708,-460.0,0.00017808,2]
[369071358,1751453452717,-516.17,0.00017808,2]
[369071359,1751453452727,-606.7464427,0.00017808,2]
[369071360,1751453452736,-1187.77,0.00017808,2]
[369071361,1751453452746,-820.5,0.00017808,2]
[369071362,1751453452755,-460.0,0.00017808,2]
[369071363,1751453452766,-460.0,0.00017808,2]
[369071364,1751453452776,-460.0,0.00017808,2]
[369071365,1751453452785,-2136.56,0.00017808,2]
[369071366,1751453452795,-479.95,0.00017808,2]
[369071367,1751453452805,-460.0,0.00017808,2]
[369071368,1751453452815,-1856.64,0.00017808,2]
[369071369,1751453452824,-460.0,0.00017808,2]
[369071370,1751453452834,-1691.26,0.00017808,2]
[369071371,1751453452843,-460.0,0.00017808,2]
[369071372,1751453452852,-460.0,0.00017808,2]
[369071373,1751453452862,-460.0,0.00017808,2]
[369071374,1751453452871,-770.55,0.00017808,2]
[369071375,1751453452881,-460.0,0.00017808,2]
[369071376,1751453452890,-460.0,0.00017808,2]
[369071377,1751453452900,-1896.16,0.00017808,2]
[369071378,1751453452909,-460.0,0.00017808,2]
[369071379,1751453452919,-460.0,0.00017808,2]
[369071380,1751453452928,-460.0,0.00017808,2]
[369071381,1751453452938,-461.71,0.00017808,2]
[369071382,1751453452947,-460.0,0.00017808,2]
[369071383,1751453452956,-460.0,0.00017808,2]
[369071384,1751453452966,-3693.36,0.00017808,2]
[369071385,1751453452975,-2788.68,0.00017808,2]
[369071386,1751453452985,-1348.54,0.00017808,2]
[369071387,1751453452995,-996.85,0.00017808,2]
[369071388,1751453453005,-970.62,0.00017808,2]
[369071389,1751453453014,-460.0,0.00017808,2]
[369071390,1751453453023,-487.35,0.00017808,2]
[369071391,1751453453033,-696.73,0.00017808,2]
[369071392,1751453453042,-460.0,0.00017808,2]
[369071393,1751453453051,-460.0,0.00017808,2]
[369071394,1751453453060,-460.0,0.00017808,2]
[369071395,1751453453069,-460.0,0.00017808,2]
[369071396,1751453453079,-460.0,0.00017808,2]
[369071397,1751453453088,-3884.47,0.00017808,2]
[369071398,1751453453097,-460.0,0.00017808,2]
[369071399,1751453453106,-460.0,0.00017808,2]
[369071400,1751453453116,-460.0,0.00017808,2]
[369071401,1751453453126,-577.38,0.00017808,2]
[369071402,1751453453135,-460.0,0.00017808,2]
[369071403,1751453453144,-460.0,0.00017808,2]
[369071404,1751453453153,-460.0,0.00017808,2]
[369071405,1751453453163,-460.0,0.00017808,2]
[369071406,1751453453172,-460.0,0.00017808,2]
[369071407,1751453453181,-484.29,0.00017808,2]
[369071408,1751453453190,-1392.92,0.00017808,2]
[369071409,1751453453199,-1401.48,0.00017808,2]
[369071410,1751453453209,-460.0,0.00017808,2]
[369071411,1751453453219,-460.0,0.00017808,2]
[369071412,1751453453228,-460.0,0.00017808,2]
[369071413,1751453453237,-460.0,0.00017808,2]
[369071414,1751453453246,-707.21,0.00017808,2]
[369071415,1751453453256,-494.42219509,0.00017808,2]
[369071416,1751453453266,-460.0,0.00017808,2]
[369071417,1751453453276,-1487.79,0.00017808,2]
[369071418,1751453453285,-505.98,0.00017808,2]
[369071419,1751453453295,-1037.19,0.00017808,2]
[369071420,1751453453304,-460.0,0.00017808,2]
[369071421,1751453453314,-810.3,0.00017808,2]
[369071422,1751453453323,-460.0,0.00017808,2]
[369071423,1751453453333,-460.0,0.00017808,2]
[369071424,1751453453343,-460.0,0.00017808,2]
[369071425,1751453453352,-482.9,0.00017808,2]
[369071426,1751453453362,-3171.18,0.00017808,2]
[369071427,1751453453371,-1680.0,0.00017818,2]
[369071428,1751453453381,-1621.92735466,0.00017831,2]
[369071429,1751453453390,-151.0,0.00017862,2]
[369071430,1751453453400,-151.0,0.00017862,2]
[369071431,1751453453409,-151.0,0.00017862,2]
[369071432,1751453453419,-163.235799,0.00017862,2]
[369071433,1751453453428,-163.235799,0.00017862,2]
[369071434,1751453453438,-837.27862799,0.00017863,2]
[369071435,1751453453447,-160.0,0.00017863,2]
[369071436,1751453453456,-12573.65100011,0.00017863,2]
[369071437,1751453453466,-213.90888375,0.00017863,2]
[369071438,1751453453475,-847.65867985,0.00017863,2]
[369071439,1751453453485,-160.0,0.00017863,2]
[369071440,1751453453494,-215.04179405,0.00017863,2]
[369071441,1751453453504,-230.34465076,0.00017863,2]
[369071442,1751453453513,-160.0,0.00017863,2]
[369071443,1751453453523,-160.0,0.00017864,2]
[369071444,1751453453533,-151.0,0.00017868,2]
[369071445,1751453453542,-151.0,0.00017868,2]
[369071446,1751453453552,-151.0,0.00017868,2]
[369071447,1751453453561,-151.0,0.00017868,2]
[369071448,1751453453571,-294.944168,0.00017868,2]
[369071449,1751453453580,-294.944168,0.00017868,2]
[369071450,1751453453590,-151.0,0.00017868,2]
[369071451,1751453453602,-151.0,0.00017868,2]
[369071452,1751453453611,-151.0,0.00017868,2]
[369071453,1751453453622,-151.0,0.00017868,2]
[369071454,1751453453631,-185.184282,0.00017868,2]
[369071455,1751453453641,-185.184282,0.00017868,2]
[369071456,1751453453651,-151.0,0.00017868,2]
[369071457,1751453453660,-151.0,0.00017868,2]
[369071458,1751453453671,-500.0,0.00017868,2]
[369071459,1751453453681,-1008.75211506,0.00017868,2]
[369071460,1751453453691,-1334.67331402,0.00017868,2]
[369071461,1751453453700,-1500.0,0.00017868,2]
[369071462,1751453453710,-1500.0,0.00017868,2]
[369071463,1751453453719,-1503.72457794,0.00017868,2]
[369071464,1751453453729,-1500.0,0.00017868,2]
[369071465,1751453453738,-162.68334425,0.00017868,2]
[369071466,1751453453747,-834.66301527,0.00017868,2]
[369071467,1751453453757,-1500.0,0.00017868,2]
[369071468,1751453453766,-1500.0,0.00017868,2]
[369071469,1751453453777,-151.0,0.000179,2]
[369071470,1751453453787,-500.0,0.00017983,2]
[369071471,1751453453796,-151.0,0.00018,2]
[369071472,1751453453806,-151.0,0.00018,2]
[369071473,1751453453816,-151.0,0.00018,2]
[369071474,1751453453825,-151.0,0.00018,2]
[369071475,1751453453834,-151.0,0.00018,2]
[369071476,1751453453843,-151.0,0.00018,2]
[369071477,1751453453853,-606.190022,0.00018,2]
[369071478,1751453453862,-770.383127,0.00018,2]
[369071479,1751453453871,-770.383127,0.00018,2]
[369071480,1751453453881,-151.429979,0.00018,2]
[369071481,1751453453890,-151.429979,0.00018,2]
[369071482,1751453453899,-286.18,0.00018,2]
[369071483,1751453453909,-286.18,0.00018,2]
[369071484,1751453453919,-286.18,0.00018,2]
[369071485,1751453453928,-151.0,0.00018,2]
[369071486,1751453453938,-5000.0,0.00018004,2]
[369071487,1751453453947,-151.0,0.00018004,2]
[369071488,1751453453957,-155.0,0.00018081,2]
[369071489,1751453453967,-388.59427715,0.00018082,2]
[369071490,1751453453977,-460.0,0.00018082,2]
[369071491,1751453453986,-460.0,0.00018082,2]
[369071492,1751453453995,-460.0,0.00018082,2]
[369071493,1751453454005,-151.0,0.00018082,2]
[369071494,1751453454015,-151.0,0.00018082,2]
[369071495,1751453454026,-460.0,0.00018082,2]
[369071496,1751453454036,-151.0,0.00018082,2]
[369071497,1751453454045,-151.0,0.00018082,2]
[369071498,1751453454056,-151.0,0.00018082,2]
[369071499,1751453454066,-436.859055,0.00018082,2]
[369071500,1751453454075,-460.0,0.00018082,2]
[369071501,1751453454085,-436.859055,0.00018082,2]
[369071502,1751453454095,-530.65,0.00018082,2]
[369071503,1751453454105,-460.0,0.00018082,2]
[369071504,1751453454115,-151.0,0.00018082,2]
[369071505,1751453454125,-151.0,0.00018082,2]
[369071506,1751453454135,-151.0,0.00018082,2]
[369071507,1751453454273,-460.0,0.00018082,2]
[369071508,1751453454283,-151.0,0.00018082,2]
[369071509,1751453454293,-493.64,0.00018082,2]
[369071510,1751453454303,-151.0,0.00018082,2]
[369071511,1751453454312,-151.0,0.00018082,2]
[369071512,1751453454322,-460.0,0.00018082,2]
[369071513,1751453454332,-460.0,0.00018082,2]
[369071514,1751453454341,-151.0,0.00018082,2]
[369071515,1751453454351,-151.0,0.00018082,2]
[369071516,1751453454361,-460.0,0.00018082,2]
[369071517,1751453454371,-231.74191,0.00018082,2]
[369071518,1751453454380,-221.739002,0.00018082,2]
[369071519,1751453454389,-231.74191,0.00018082,2]
[369071520,1751453454399,-460.0,0.00018082,2]
[369071521,1751453454409,-460.0,0.00018082,2]
[369071522,1751453454418,-151.0,0.00018082,2]
[369071523,1751453454428,-374.526579,0.00018082,2]
[369071524,1751453454438,-374.526579,0.00018082,2]
[369071525,1751453454447,-151.0,0.00018082,2]
[369071526,1751453454456,-290.625628,0.00018082,2]
[369071527,1751453454465,-290.625628,0.00018082,2]
[369071528,1751453454475,-460.0,0.00018082,2]
[369071529,1751453454484,-460.0,0.00018082,2]
[369071530,1751453454494,-514.43493426,0.00018082,2]
[369071531,1751453454504,-460.0,0.00018082,2]
[369071532,1751453454513,-460.0,0.00018082,2]
[369071533,1751453454522,-911.517253,0.00018082,2]
[369071534,1751453454531,-911.517253,0.00018082,2]
[369071535,1751453454541,-658.41,0.00018082,2]
[369071536,1751453454550,-301.2030837,0.00018082,2]
[369071537,1751453454559,-460.0,0.00018082,2]
[369071538,1751453454569,-460.0,0.00018082,2]
[369071539,1751453454578,-176.443794,0.00018082,2]
[369071540,1751453454588,-506.41,0.00018082,2]
[369071541,1751453454600,-176.443794,0.00018082,2]
[369071542,1751453454610,-460.0,0.00018082,2]
[369071543,1751453454620,-151.0,0.00018082,2]
[369071544,1751453454630,-460.0,0.00018082,2]
[369071545,1751453454640,-156.173079,0.00018082,2]
[369071546,1751453454649,-156.173079,0.00018082,2]
[369071547,1751453454659,-1129.18,0.00018082,2]
[369071548,1751453454668,-460.0,0.00018082,2]
[369071549,1751453454678,-439.397949,0.00018082,2]
[369071550,1751453454687,-439.397949,0.00018082,2]
[369071551,1751453454696,-460.0,0.00018082,2]
[369071552,1751453454705,-273.545379,0.00018082,2]
[369071553,1751453454714,-1998.73,0.00018082,2]
[369071554,1751453454723,-460.0,0.00018082,2]
[369071555,1751453454732,-151.0,0.00018082,2]
[369071556,1751453454741,-807.76,0.00018082,2]
[369071557,1751453454750,-273.545379,0.00018082,2]
[369071558,1751453454759,-460.0,0.00018082,2]
[369071559,1751453454769,-507.57,0.00018082,2]
[369071560,1751453454778,-151.0,0.00018082,2]
[369071561,1751453454787,-527.98,0.00018082,2]
[369071562,1751453454796,-488.07,0.00018082,2]
[369071563,1751453454806,-516.17,0.00018082,2]
[369071564,1751453454815,-1187.77,0.00018082,2]
[369071565,1751453454825,-820.5,0.00018082,2]
[369071566,1751453454835,-460.0,0.00018082,2]
[369071567,1751453454844,-460.0,0.00018082,2]
[369071568,1751453454853,-460.0,0.00018082,2]
[369071569,1751453454862,-2136.56,0.00018082,2]
[369071570,1751453454871,-479.95,0.00018082,2]
[369071571,1751453454881,-460.0,0.00018082,2]
[369071572,1751453454890,-1856.64,0.00018082,2]
[369071573,1751453454899,-460.0,0.00018082,2]
[369071574,1751453454909,-1691.26,0.00018082,2]
[369071575,1751453454918,-460.0,0.00018082,2]
[369071576,1751453454928,-460.0,0.00018082,2]
[369071577,1751453454938,-770.55,0.00018082,2]
[369071578,1751453454948,-460.0,0.00018082,2]
[369071579,1751453454958,-460.0,0.00018082,2]
[369071580,1751453454966,-1896.16,0.00018082,2]
[369071581,1751453454975,-565.1132145,0.00018082,2]
[369071582,1751453454985,-460.0,0.00018082,2]
[369071583,1751453454995,-460.0,0.00018082,2]
[369071584,1751453455004,-461.71,0.00018082,2]
[369071585,1751453455013,-460.0,0.00018082,2]
[369071586,1751453455022,-460.0,0.00018082,2]
[369071587,1751453455031,-3693.36,0.00018082,2]
[369071588,1751453455041,-2788.68,0.00018082,2]
[369071589,1751453455050,-1348.54,0.00018082,2]
[369071590,1751453455059,-996.85,0.00018082,2]
[369071591,1751453455069,-970.62,0.00018082,2]
[369071592,1751453455078,-460.0,0.00018082,2]
[369071593,1751453455088,-487.35,0.00018082,2]
[369071594,1751453455097,-696.73,0.00018082,2]
[369071595,1751453455106,-460.0,0.00018082,2]
[369071596,1751453455116,-460.0,0.00018082,2]
[369071597,1751453455126,-460.0,0.00018082,2]
[369071598,1751453455135,-3884.47,0.00018082,2]
[369071599,1751453455144,-460.0,0.00018082,2]
[369071600,1751453455153,-460.0,0.00018082,2]
[369071601,1751453455162,-460.0,0.00018082,2]
[369071602,1751453455171,-460.0,0.00018082,2]
[369071603,1751453455181,-577.38,0.00018082,2]
[369071604,1751453455189,-460.0,0.00018082,2]
[369071605,1751453455198,-460.0,0.00018082,2]
[369071606,1751453455207,-460.0,0.00018082,2]
[369071607,1751453455217,-460.0,0.00018082,2]
[369071608,1751453455226,-484.29,0.00018082,2]
[369071609,1751453455236,-1392.92,0.00018082,2]
[369071610,1751453455244,-1401.48,0.00018082,2]
[369071611,1751453455254,-460.0,0.00018082,2]
[369071612,1751453455263,-460.0,0.00018082,2]
[369071613,1751453455273,-460.0,0.00018082,2]
[369071614,1751453455282,-707.21,0.00018082,2]
[369071615,1751453455292,-460.0,0.00018082,2]
[369071616,1751453455302,-1487.79,0.00018082,2]
[369071617,1751453455311,-505.98,0.00018082,2]
[369071618,1751453455321,-1037.19,0.00018082,2]
[369071619,1751453455330,-460.0,0.00018082,2]
[369071620,1751453455341,-810.3,0.00018082,2]
[369071621,1751453455350,-460.0,0.00018082,2]
[369071622,1751453455359,-460.0,0.00018082,2]
[369071623,1751453455368,-460.0,0.00018082,2]
[369071624,1751453455377,-482.9,0.00018082,2]
[369071625,1751453455387,-3171.18,0.00018082,2]
[369071626,1751453455396,-2864.9618803,0.00018082,2]
[369071627,1751453455405,-900.0,0.00018118,2]
[369071628,1751453455415,-1621.92735466,0.00018141,2]
[369071629,1751453455424,-151.0,0.000182,2]
[369071630,1751453455433,-54937.94431811,0.0001822,2]
[369071631,1751453455443,-460.0,0.00018356,2]
[369071632,1751453455452,-460.0,0.00018356,2]
[369071633,1751453455462,-443.02240175,0.00018356,2]
[369071634,1751453455471,-151.0,0.00018356,2]
[369071635,1751453455481,-460.0,0.00018356,2]
[369071636,1751453455491,-460.0,0.00018356,2]
[369071637,1751453455500,-460.0,0.00018356,2]
[369071638,1751453455510,-530.65,0.00018356,2]
[369071639,1751453455519,-460.0,0.00018356,2]
[369071640,1751453455528,-493.64,0.00018356,2]
[369071641,1751453455538,-460.0,0.00018356,2]
[369071642,1751453455547,-460.0,0.00018356,2]
[369071643,1751453455557,-460.0,0.00018356,2]
[369071644,1751453455566,-460.0,0.00018356,2]
[369071645,1751453455575,-460.0,0.00018356,2]
[369071646,1751453455584,-460.0,0.00018356,2]
[369071647,1751453455598,-460.0,0.00018356,2]
[369071648,1751453455609,-460.0,0.00018356,2]
[369071649,1751453455619,-658.41,0.00018356,2]
[369071650,1751453455628,-460.0,0.00018356,2]
[369071651,1751453455638,-460.0,0.00018356,2]
[369071652,1751453455648,-506.41,0.00018356,2]
[369071653,1751453455657,-460.0,0.00018356,2]
[369071654,1751453455666,-460.0,0.00018356,2]
[369071655,1751453455679,-1129.18,0.00018356,2]
[369071656,1751453455689,-460.0,0.00018356,2]
[369071657,1751453455700,-460.0,0.00018356,2]
[369071658,1751453455710,-1998.73,0.00018356,2]
[369071659,1751453455720,-460.0,0.00018356,2]
[369071660,1751453455730,-151.0,0.00018356,2]
[369071661,1751453455739,-807.76,0.00018356,2]
[369071662,1751453455749,-460.0,0.00018356,2]
[369071663,1751453455758,-507.57,0.00018356,2]
[369071664,1751453455768,-151.0,0.00018356,2]
[369071665,1751453455778,-527.98,0.00018356,2]
[369071666,1751453455787,-488.07,0.00018356,2]
[369071667,1751453455796,-516.17,0.00018356,2]
[369071668,1751453455806,-1187.77,0.00018356,2]
[369071669,1751453455815,-820.5,0.00018356,2]
[369071670,1751453455825,-460.0,0.00018356,2]
[369071671,1751453455834,-460.0,0.00018356,2]
[369071672,1751453455843,-460.0,0.00018356,2]
[369071673,1751453455852,-2136.56,0.00018356,2]
[369071674,1751453455862,-479.95,0.00018356,2]
[369071675,1751453455871,-460.0,0.00018356,2]
[369071676,1751453455881,-1856.64,0.00018356,2]
[369071677,1751453455890,-151.0,0.00018356,2]
[369071678,1751453455900,-460.0,0.00018356,2]
[369071679,1751453455910,-1691.26,0.00018356,2]
[369071680,1751453455924,-460.0,0.00018356,2]
[369071681,1751453455934,-460.0,0.00018356,2]
[369071682,1751453455943,-770.55,0.00018356,2]
[369071683,1751453455953,-460.0,0.00018356,2]
[369071684,1751453455962,-460.0,0.00018356,2]
[369071685,1751453455972,-1896.16,0.00018356,2]
[369071686,1751453455981,-460.0,0.00018356,2]
[369071687,1751453455991,-460.0,0.00018356,2]
[369071688,1751453456001,-461.71,0.00018356,2]
[369071689,1751453456010,-460.0,0.00018356,2]
[369071690,1751453456020,-460.0,0.00018356,2]
[369071691,1751453456029,-3693.36,0.00018356,2]
[369071692,1751453456038,-2788.68,0.00018356,2]
[369071693,1751453456051,-1348.54,0.00018356,2]
[369071694,1751453456060,-151.0,0.00018356,2]
[369071695,1751453456069,-996.85,0.00018356,2]
[369071696,1751453456078,-970.62,0.00018356,2]
[369071697,1751453456087,-206.85966884,0.00018356,2]
[369071698,1751453456097,-696.73,0.00018356,2]
[369071699,1751453456106,-487.35,0.00018356,2]
[369071700,1751453456116,-460.0,0.00018356,2]
[369071701,1751453456126,-460.0,0.00018356,2]
[369071702,1751453456136,-460.0,0.00018356,2]
[369071703,1751453456146,-3884.47,0.00018356,2]
[369071704,1751453456156,-460.0,0.00018356,2]
[369071705,1751453456165,-460.0,0.00018356,2]
[369071706,1751453456174,-460.0,0.00018356,2]
[369071707,1751453456183,-460.0,0.00018356,2]
[369071708,1751453456193,-577.38,0.00018356,2]
[369071709,1751453456202,-460.0,0.00018356,2]
[369071710,1751453456211,-460.0,0.00018356,2]
[369071711,1751453456220,-460.0,0.00018356,2]
[369071712,1751453456230,-484.29,0.00018356,2]
[369071713,1751453456239,-151.0,0.00018356,2]
[369071714,1751453456248,-1392.92,0.00018356,2]
[369071715,1751453456257,-1401.48,0.00018356,2]
[369071716,1751453456267,-460.0,0.00018356,2]
[369071717,1751453456276,-460.0,0.00018356,2]
[369071718,1751453456284,-460.0,0.00018356,2]
[369071719,1751453456293,-151.0,0.00018356,2]
[369071720,1751453456302,-707.21,0.00018356,2]
[369071721,1751453456311,-185.184282,0.00018356,2]
[369071722,1751453456320,-185.184282,0.00018356,2]
[369071723,1751453456329,-460.0,0.00018356,2]
[369071724,1751453456339,-1487.79,0.00018356,2]
[369071725,1751453456348,-505.98,0.00018356,2]
[369071726,1751453456357,-1037.19,0.00018356,2]
[369071727,1751453456366,-151.0,0.00018356,2]
[369071728,1751453456375,-463.17672763,0.00018356,2]
[369071729,1751453456385,-810.3,0.00018356,2]
[369071730,1751453456394,-151.0,0.00018356,2]
[369071731,1751453456403,-356.1984764,0.00018356,2]
[369071732,1751453456412,-460.0,0.00018356,2]
[369071733,1751453456421,-460.0,0.00018356,2]
[369071734,1751453456431,-482.9,0.00018356,2]
[369071735,1751453456440,-3171.18,0.00018356,2]
[369071736,1751453456450,-2702.53318847,0.00018393,2]
[369071737,1751453456459,-151.0,0.000184,2]
[369071738,1751453456468,-2000.0,0.00018416,2]
[369071739,1751453456477,-2000.0,0.00018416,2]
[369071740,1751453456486,-2000.0,0.00018416,2]
[369071741,1751453456496,-1500.0,0.00018416,2]
[369071742,1751453456505,-1621.92735466,0.00018452,2]
[369071743,1751453456515,-151.0,0.0001861,2]
[369071744,1751453456524,-163.235799,0.0001861,2]
[369071745,1751453456534,-163.235799,0.0001861,2]
[369071746,1751453456543,-151.0,0.00018616,2]
[369071747,1751453456552,-151.0,0.0001863,2]
[369071748,1751453456562,-151.0,0.0001863,2]
[369071749,1751453456572,-151.0,0.0001863,2]
[369071750,1751453456581,-151.0,0.0001863,2]
[369071751,1751453456590,-151.0,0.0001863,2]
[369071752,1751453456602,-460.0,0.0001863,2]
[369071753,1751453456611,-606.190022,0.0001863,2]
[369071754,1751453456621,-770.383127,0.0001863,2]
[369071755,1751453456630,-770.383127,0.0001863,2]
[369071756,1751453456641,-460.0,0.0001863,2]
[369071757,1751453456650,-151.429979,0.0001863,2]
[369071758,1751453456659,-151.429979,0.0001863,2]
[369071759,1751453456668,-240.519655,0.0001863,2]
[369071760,1751453456681,-312.37349419,0.0001863,2]
[369071761,1751453456690,-460.0,0.0001863,2]
[369071762,1751453456700,-530.65,0.0001863,2]
[369071763,1751453456709,-151.0,0.0001863,2]
[369071764,1751453456718,-1084.552361,0.0001863,2]
[369071765,1751453456727,-460.0,0.0001863,2]
[369071766,1751453456737,-493.64,0.0001863,2]
[369071767,1751453456746,-460.0,0.0001863,2]
[369071768,1751453456755,-492.08,0.0001863,2]
[369071769,1751453456765,-460.0,0.0001863,2]
[369071770,1751453456774,-460.0,0.0001863,2]
[369071771,1751453456783,-460.0,0.0001863,2]
[369071772,1751453456792,-460.0,0.0001863,2]
[369071773,1751453456803,-460.0,0.0001863,2]
[369071774,1751453456812,-658.41,0.0001863,2]
[369071775,1751453456822,-460.0,0.0001863,2]
[369071776,1751453456831,-460.0,0.0001863,2]
[369071777,1751453456841,-506.41,0.0001863,2]
[369071778,1751453456851,-460.0,0.0001863,2]
[369071779,1751453456860,-151.0,0.0001863,2]
[369071780,1751453456869,-460.0,0.0001863,2]
[369071781,1751453456879,-156.173079,0.0001863,2]
[369071782,1751453456888,-156.173079,0.0001863,2]
[369071783,1751453456897,-1129.18,0.0001863,2]
[369071784,1751453456907,-460.0,0.0001863,2]
[369071785,1751453456916,-439.397949,0.0001863,2]
[369071786,1751453456925,-439.397949,0.0001863,2]
[369071787,1751453456935,-460.0,0.0001863,2]
[369071788,1751453456944,-273.545379,0.0001863,2]
[369071789,1751453456954,-1998.73,0.0001863,2]
[369071790,1751453456963,-460.0,0.0001863,2]
[369071791,1751453456973,-807.76,0.0001863,2]
[369071792,1751453456983,-273.545379,0.0001863,2]
[369071793,1751453456992,-460.0,0.0001863,2]
[369071794,1751453457002,-507.57,0.0001863,2]
[369071795,1751453457011,-527.98,0.0001863,2]
[369071796,1751453457020,-488.07,0.0001863,2]
[369071797,1751453457149,-516.17,0.0001863,2]
[369071798,1751453457159,-1187.77,0.0001863,2]
[369071799,1751453457168,-820.5,0.0001863,2]
[369071800,1751453457178,-460.0,0.0001863,2]
[369071801,1751453457187,-460.0,0.0001863,2]
[369071802,1751453457196,-460.0,0.0001863,2]
[369071803,1751453457206,-2136.56,0.0001863,2]
[369071804,1751453457216,-479.95,0.0001863,2]
[369071805,1751453457225,-460.0,0.0001863,2]
[369071806,1751453457234,-1856.64,0.0001863,2]
[369071807,1751453457244,-1691.26,0.0001863,2]
[369071808,1751453457253,-460.0,0.0001863,2]
[369071809,1751453457262,-460.0,0.0001863,2]
[369071810,1751453457271,-460.0,0.0001863,2]
[369071811,1751453457281,-770.55,0.0001863,2]
[369071812,1751453457290,-460.0,0.0001863,2]
[369071813,1751453457299,-460.0,0.0001863,2]
[369071814,1751453457308,-1896.16,0.0001863,2]
[369071815,1751453457317,-460.0,0.0001863,2]
[369071816,1751453457326,-167.35130431,0.0001863,2]
[369071817,1751453457336,-461.71,0.0001863,2]
[369071818,1751453457346,-460.0,0.0001863,2]
[369071819,1751453457356,-460.0,0.0001863,2]
[369071820,1751453457365,-3693.36,0.0001863,2]
[369071821,1751453457374,-2788.68,0.0001863,2]
[369071822,1751453457383,-1348.54,0.0001863,2]